bitfinex/quotes_ETHUSD_20240731
["timestamp","ask_amount","ask_price","bid_price","bid_amount"]
[1722455724566,3.06285,3265.0,3263.2,0.53043678]
[1722455724782,3.0626,3265.2,3263.5,3.06417]
[1722455724949,0.306247,3265.3,3262.7,1.5]
[1722455725145,3.0625,3265.3,3263.6,3.06403]
[1722455725449,3.0625,3265.3,3263.4,3.06425]
[1722455725450,3.06241,3265.4,3263.8,3.06385]
[1722455725685,3.55,3266.2,3263.6,3.06405]
[1722455725896,3.55,3266.2,3262.8,0.3081]
[1722455725897,3.06225,3265.6,3263.4,3.06419]
[1722455726076,0.306225,3265.5,3263.6,3.37212]
[1722455726290,3.368545,3265.5,3264.1,3.06358]
[1722455726609,0.28023418,3265.5,3264.2,3.06349]
[1722455726776,3.06176,3266.1,3264.6,3.06315]
[1722455726977,3.0612,3266.7,3265.1,3.06268]
[1722455727177,3.0612,3266.7,3265.0,3.06276]
[1722455727178,3.06145,3266.5,3265.0,3.06276]
[1722455727517,3.06145,3266.5,3264.3,1.5]
[1722455727518,3.06122,3266.7,3265.2,3.06258]
[1722455727677,1.530356,3267.2,3265.2,3.06252]
[1722455727862,2.4031,3268.1,3264.8,1.5]
[1722455727863,3.06065,3267.3,3264.8,1.5]
[1722455728062,3.06062,3267.4,3265.3,3.06245]
[1722455728407,0.3081,3270.0,3264.8,1.5]
[1722455728408,1.53059554,3271.2,3266.1,3.06174]
[1722455728578,3.06027,3267.7,3266.1,3.06174]
[1722455728780,3.06014,3267.9,3266.2,3.06164]
[1722455729109,3.06072,3267.2,3265.5,3.06229]
[1722455729263,0.306014,3267.8,3265.6,3.06222]
[1722455729463,3.06054,3267.4,3265.9,3.06192]
[1722455729712,0.306054,3267.3,3265.3,3.06242]
[1722455729918,0.306054,3267.3,3265.9,3.06191]
[1722455730077,3.06026,3267.7,3266.0,3.06181]
[1722455730275,3.06011,3267.9,3266.0,3.06181]
[1722455730509,3.05988,3268.1,3265.8,3.06202]
[1722455730684,3.05999,3268.0,3266.2,3.06165]
[1722455730866,3.05872,3269.4,3265.7,0.3081]
[1722455730867,3.06006,3267.9,3266.3,3.06155]
[1722455731206,0.306006,3267.8,3265.7,0.3081]
[1722455731409,3.05892,3269.2,3266.9,3.06099]
[1722455731609,3.05862,3269.5,3266.6,2.3246]
[1722455731767,3.1464054,3269.7,3267.2,3.06071]
[1722455732120,3.1464054,3269.7,3266.6,2.3246]
[1722455732121,0.1464054,3269.7,3266.6,2.3246]
[1722455732270,0.1464054,3269.7,3267.3,1.5]
[1722455732470,0.1464054,3269.7,3267.8,3.06014]
[1722455732814,3.05849,3269.6,3268.0,3.05995]
[1722455733012,0.1464054,3269.7,3267.8,0.94025178]
[1722455733230,0.1464054,3269.7,3266.9,2.19392082]
[1722455733231,3.05994,3268.1,3267.1,3.1341492]
[1722455733403,3.05942,3268.6,3267.1,1.88050356]
[1722455733568,0.305942,3268.5,3267.7,0.94025178]
[1722455733768,3.05887,3269.2,3267.7,0.94025178]
[1722455734073,3.05988,3268.1,3267.7,0.94025178]
[1722455734276,3.0,3268.7,3268.0,1.88050356]
[1722455734651,0.55,3268.6,3267.6,2.19392082]
[1722455734836,0.55,3268.6,3268.4,2.22938177]
[1722455735113,0.591782,3268.6,3268.5,1.27396915]
[1722455735269,3.651192,3268.6,3268.5,1.27396915]
[1722455735469,3.651192,3268.6,3268.5,0.95495484]
[1722455735470,6.651192,3268.6,3268.5,0.95495484]
[1722455735711,3.591782,3268.6,3268.4,1.27390491]
[1722455736025,0.591782,3268.6,3268.4,2.22887047]
[1722455736169,3.0,3268.7,3268.0,1.59246143]
[1722455736170,6.11976,3268.1,3268.0,2.54742699]
[1722455736372,6.11976,3268.1,3268.0,1.59246143]
[1722455736373,6.09636826,3268.1,3268.0,1.59246143]
[1722455736719,6.58648826,3268.1,3268.0,1.59246143]
[1722455736920,6.58648826,3268.1,3267.7,0.95496556]
[1722455736921,3.0,3268.1,3267.7,0.95496556]
[1722455737619,0.3591782,3268.5,3268.0,1.59282047]
[1722455737769,0.1464054,3269.7,3268.3,1.2741611]
[1722455738112,0.55,3269.6,3268.2,1.2741611]
[1722455738283,0.1464054,3269.7,3268.5,1.2741611]
[1722455738483,0.24549054,3269.6,3268.5,1.2741611]
[1722455739013,3.05896,3269.1,3268.5,1.2741611]
[1722455739170,0.24549054,3269.6,3268.3,1.2741611]
[1722455739378,0.24549054,3269.6,3268.5,1.2741611]
[1722455739574,3.05909,3269.0,3268.5,1.2741611]
[1722455739774,0.24549054,3269.6,3267.7,3.82245504]
[1722455739775,0.305909,3268.9,3267.9,1.2741611]
[1722455740019,0.24549054,3269.6,3267.7,2.86666749]
[1722455740223,0.55,3268.8,3267.7,1.59250639]
[1722455740393,3.05914,3268.9,3267.7,1.59250639]
[1722455740593,0.55,3268.8,3267.7,2.86666749]
[1722455740949,0.24549054,3269.6,3268.4,1.2741611]
[1722455741072,0.1464054,3269.7,3268.7,1.2741611]
[1722455741274,0.1464054,3269.7,3268.9,1.2741611]
[1722455741508,0.1464054,3269.7,3269.1,1.2741611]
[1722455741710,0.1464054,3269.7,3269.4,1.2741611]
[1722455741920,0.1464054,3269.7,3269.2,1.2741611]
[1722455742230,3.05904,3269.0,3268.4,1.2741611]
[1722455742521,3.2048054,3269.7,3268.3,1.2741611]
[1722455742681,3.05878,3269.3,3268.4,1.2741611]
[1722455742876,3.05913,3268.9,3268.3,1.2741611]
[1722455743077,3.0,3268.8,3267.9,1.2741611]
[1722455743283,3.0,3268.8,3268.0,1.2741611]
[1722455743492,0.3,3268.8,3268.0,1.27195883]
[1722455743695,3.3,3268.8,3268.1,1.27195883]
[1722455743894,3.0,3268.8,3268.1,1.27195883]
[1722455744097,3.05882,3269.3,3268.3,1.27195883]
[1722455744275,0.1464054,3269.7,3268.5,1.27195883]
[1722455744589,0.1464054,3269.7,3268.4,1.27195883]
[1722455744789,0.1464054,3269.7,3268.5,1.27195883]
[1722455745189,0.1464054,3269.7,3267.8,3.06008]
[1722455745190,0.1464054,3269.7,3268.8,1.27195883]
[1722455745615,0.1464054,3269.7,3268.9,1.27195883]
[1722455745818,3.2047854,3269.7,3268.9,1.27195883]
[1722455746040,0.32047854,3269.6,3268.7,1.27195883]
[1722455746240,0.1464054,3269.7,3268.7,1.27195883]
[1722455746447,3.05857,3269.5,3268.1,3.0]
[1722455746744,3.05857,3269.5,3267.4,1.8081]
[1722455746745,0.12535284,3269.7,3268.9,1.26995702]
[1722455747044,0.12535284,3269.7,3268.6,1.58758155]
[1722455747045,3.05883,3269.3,3268.6,1.26995702]
[1722455747246,3.05861,3269.5,3268.4,1.26995702]
[1722455747414,3.05867,3269.4,3268.5,0.06117382]
[1722455747619,3.05867,3269.4,3268.3,1.26995702]
[1722455747620,3.05925,3268.8,3268.3,1.26995702]
[1722455747822,3.05904,3269.0,3268.1,1.26995702]
[1722455748018,3.05882,3269.3,3268.1,1.26995702]
[1722455748246,3.12535284,3269.7,3268.1,1.26995702]
[1722455748247,6.18379284,3269.7,3268.2,0.06118616]
[1722455748417,0.12535284,3269.7,3268.3,0.06117603]
[1722455748633,0.12535284,3269.7,3268.6,3.05936]
[1722455748832,3.18374284,3269.7,3268.4,2.4856]
[1722455749046,0.12535284,3269.7,3268.5,0.06116911]
[1722455749420,0.12535284,3269.7,3269.2,3.05884]
[1722455749622,0.12535284,3269.7,3269.3,0.06115863]
[1722455749852,0.12535284,3269.7,3269.0,3.0]
[1722455750074,0.12535284,3269.7,3269.1,0.6]
[1722455750268,0.12535284,3269.7,3269.1,0.66115867]
[1722455750472,0.12535284,3269.7,3269.1,3.66115867]
[1722455750832,0.12535284,3269.7,3269.2,3.0]
[1722455751372,0.12535284,3269.7,3269.1,0.6]
[1722455751519,0.12535284,3269.7,3268.8,6.0592]
[1722455751851,0.12535284,3269.7,3269.0,3.05903]
[1722455752053,0.12535284,3269.7,3269.1,3.0]
[1722455752237,0.12535284,3269.7,3269.2,0.06116047]
[1722455752563,0.12535284,3269.7,3269.1,3.0]
[1722455752723,0.12535284,3269.7,3269.2,0.06115787]
[1722455752929,0.12535284,3269.7,3269.1,0.33081]
[1722455753232,0.12535284,3269.7,3269.2,0.06115695]
[1722455753433,0.12535284,3269.7,3269.3,0.06115683]
[1722455754051,0.12535284,3269.7,3269.2,3.0]
[1722455754366,0.12535284,3269.7,3268.9,6.36716]
[1722455754679,0.12535284,3269.7,3269.0,0.942637]
[1722455754829,0.12535284,3269.7,3268.7,3.0]
[1722455755031,0.12535284,3269.7,3268.6,0.3081]
[1722455755463,0.12535284,3269.7,3268.7,3.0593]
[1722455755665,0.12535284,3269.7,3268.6,0.3081]
[1722455756181,0.12535284,3269.7,3268.4,2.4856]
[1722455756182,3.05864,3269.5,3268.4,2.4856]
[1722455756377,0.12535284,3269.7,3268.4,2.4856]
[1722455756378,3.05851,3269.6,3268.4,2.4856]
[1722455756536,3.05851,3269.6,3269.5,0.01894731]
[1722455756735,0.12535284,3269.7,3269.5,0.01894731]
[1722455760509,6.11694,3269.6,3269.5,0.01894731]
[1722455760703,3.05847,3269.6,3269.5,0.01894731]
[1722455760858,6.11694,3269.6,3269.5,0.01894731]
[1722455761057,6.74116928,3269.6,3269.5,0.01894731]
[1722455761681,9.79963928,3269.6,3269.5,0.01894731]
[1722455761875,13.34963928,3269.6,3269.5,0.01894731]
[1722455762075,16.40810928,3269.6,3269.5,0.01894731]
[1722455762291,16.40810928,3269.6,3267.7,2.3978]
[1722455762292,3.05952,3268.5,3267.7,2.3978]
[1722455762493,3.05952,3268.5,3266.9,5.46496]
[1722455762494,3.05951,3268.5,3266.9,5.46496]
[1722455762677,3.05951,3268.5,3267.0,3.73391088]
[1722455763005,3.06008,3267.9,3266.9,2.404]
[1722455763389,3.0,3268.4,3267.0,0.06120432]
[1722455763557,2.2553,3270.0,3267.0,0.06120432]
[1722455763558,3.05972,3268.3,3267.0,0.06120432]
[1722455763757,3.0,3268.2,3267.0,0.06120432]
[1722455763986,3.05953,3268.5,3267.0,0.06120432]
[1722455764302,3.0,3268.4,3267.1,0.24652043]
[1722455764606,3.05857,3269.5,3267.1,0.24652043]
[1722455764607,3.05805,3270.1,3267.2,0.06119905]
[1722455764801,3.05925,3268.8,3267.2,3.0]
[1722455765104,3.05957,3268.5,3267.1,0.24652043]
[1722455765269,3.05938,3268.7,3267.2,3.0607]
[1722455765475,3.05934,3268.7,3267.3,0.39191901]
[1722455765708,3.05957,3268.5,3267.3,0.39191901]
[1722455765859,3.0,3269.0,3267.0,3.0]
[1722455766063,0.55,3269.5,3266.9,8.46498]
[1722455766064,3.05944,3268.6,3266.9,8.46498]
[1722455766278,0.55,3268.9,3267.3,3.06055]
[1722455766475,0.55,3268.9,3266.9,5.404]
[1722455766476,0.55,3269.0,3267.4,0.06119563]
[1722455766678,3.05928,3268.8,3267.4,0.06119563]
[1722455766908,0.62422928,3269.6,3267.4,0.06119563]
[1722455767107,0.12535284,3269.7,3267.7,3.06025]
[1722455767108,3.059,3269.1,3267.7,3.06025]
[1722455767307,0.12535284,3269.7,3267.8,3.0]
[1722455767615,3.05966,3268.4,3266.9,3.66964879]
[1722455767759,3.05867,3269.4,3267.0,6.06084]
[1722455767960,3.05933,3268.7,3267.0,3.0]
[1722455768277,3.05889,3269.2,3266.9,2.404]
[1722455768278,3.0598,3268.2,3266.9,2.404]
[1722455768462,3.05888,3269.2,3266.9,2.404]
[1722455768463,3.05949,3268.6,3266.9,2.404]
[1722455768663,3.06045,3267.5,3266.9,2.404]
[1722455768879,3.06045,3267.5,3266.2,3.74853922]
[1722455769080,3.06008,3267.9,3266.3,3.49753407]
[1722455769383,3.55,3268.5,3266.5,1.26933922]
[1722455769695,3.06007,3267.9,3266.6,1.3328687]
[1722455769904,3.0604,3267.6,3266.6,3.0]
[1722455770132,3.06045,3267.5,3266.3,1.64652039]
[1722455770277,3.06045,3267.5,3266.2,2.4792]
[1722455770278,3.06063,3267.3,3266.2,3.75207426]
[1722455770464,3.06048,3267.5,3266.2,2.4792]
[1722455770666,3.0,3268.0,3266.5,3.06136]
[1722455770903,3.05992,3268.1,3266.6,0.06120635]
[1722455771231,3.06049,3267.5,3266.5,1.27287426]
[1722455771523,3.06049,3267.5,3266.2,2.4792]
[1722455771524,3.0597,3268.3,3266.2,1.27287426]
[1722455771674,3.06073,3267.2,3266.2,1.27287426]
[1722455771879,3.06064,3267.3,3266.1,1.27287426]
[1722455772131,3.55,3268.2,3266.2,1.27287426]
[1722455772322,3.55,3268.2,3266.1,1.27287426]
[1722455772323,3.06064,3267.3,3266.1,1.27287426]
[1722455772620,3.06016,3267.9,3266.2,0.28639671]
[1722455772774,3.06002,3268.0,3266.5,3.06132]
[1722455772972,3.06016,3267.8,3266.6,0.061211]
[1722455773438,3.06012,3267.9,3266.7,0.06121103]
[1722455773736,3.55,3268.2,3266.7,0.06121103]
[1722455774022,3.06025,3267.8,3266.7,0.06121103]
[1722455774325,3.06046,3267.5,3266.4,1.27572679]
[1722455774487,3.06012,3267.9,3266.4,1.86276532]
[1722455774817,3.06037,3267.6,3266.4,1.86276532]
[1722455775020,3.06007,3267.9,3266.4,7.92414532]
[1722455775229,3.06007,3267.9,3266.5,0.06120858]
[1722455775386,3.06016,3267.8,3266.4,6.64841853]
[1722455775724,3.06035,3267.6,3266.5,0.79241453]
[1722455776035,2.4303,3269.3,3267.5,3.06042]
[1722455776322,2.4303,3269.3,3267.3,3.06059]
[1722455776323,3.0593,3268.8,3267.4,3.06053]
[1722455776526,3.05886,3269.2,3267.6,0.06118906]
[1722455776710,3.05882,3269.3,3267.8,3.06009]
[1722455776915,3.05873,3269.4,3268.0,3.05993]
[1722455777114,3.05892,3269.2,3267.9,2.4433]
[1722455777278,3.05924,3268.8,3267.9,2.4433]
[1722455777478,3.05931,3268.8,3267.5,1.88923846]
[1722455777684,3.0591,3269.0,3267.6,1.92569786]
[1722455777895,3.05935,3268.7,3267.6,1.92569786]
[1722455778099,6.11875,3268.7,3267.6,0.6485654]
[1722455778327,3.05967,3268.4,3267.4,4.27713246]
[1722455778511,3.05967,3268.4,3267.1,3.59003246]
[1722455778713,3.05967,3268.4,3267.3,1.27713246]
[1722455778923,3.0,3268.9,3267.1,2.3129]
[1722455779233,3.05925,3268.8,3267.2,3.12191278]
[1722455779414,3.05933,3268.7,3267.3,0.0611928]
[1722455779586,3.0,3268.7,3267.2,3.06071]
[1722455779790,3.05917,3268.9,3267.2,6.12136]
[1722455779791,3.05941,3268.6,3267.2,6.12136]
[1722455780013,3.0592,3268.9,3267.4,3.06048]
[1722455780221,3.0588,3269.3,3267.6,3.06031]
[1722455780385,3.05887,3269.2,3267.7,3.12136636]
[1722455780724,3.05887,3269.2,3267.8,3.0]
[1722455780933,3.05861,3269.5,3268.0,3.05988]
[1722455781229,3.05867,3269.4,3268.1,3.37328567]
[1722455781436,3.05851,3269.6,3268.1,6.43314567]
[1722455781729,0.12535284,3269.7,3268.1,3.37328567]
[1722455781730,3.18380284,3269.7,3268.1,3.37328567]
[1722455781898,0.12535284,3269.7,3268.1,0.37328567]
[1722455782242,3.05853,3269.6,3268.2,3.05972]
[1722455782403,3.05872,3269.4,3268.3,3.0]
[1722455782751,0.12535284,3269.7,3268.3,0.06117498]
[1722455783031,0.12535284,3269.7,3268.9,3.05912]
[1722455783344,0.12535284,3269.7,3269.0,3.12017449]
[1722455783679,0.12535284,3269.7,3269.1,0.61792945]
[1722455783794,0.12535284,3269.7,3269.2,0.0611545]
[1722455783986,0.12535284,3269.7,3269.3,3.11990322]
[1722455784488,0.12535284,3269.7,3269.6,3.05847]
[1722455784836,0.12535284,3269.7,3269.6,11.54184]
[1722455784988,0.12535284,3269.7,3269.6,11.60298707]
[1722455785188,0.12535284,3269.7,3269.6,9.70481578]
[1722455785621,0.12535284,3269.7,3269.6,12.76328578]
[1722455785809,0.12535284,3269.7,3269.6,9.70481578]
[1722455786106,3.05664,3271.6,3270.2,3.0579]
[1722455786315,3.05605,3272.2,3270.6,3.05753]
[1722455786645,3.05605,3272.2,3270.7,3.42429754]
[1722455786809,3.05605,3272.2,3270.8,6.11847407]
[1722455786997,3.05605,3272.2,3270.8,3.11847407]
[1722455787739,3.05634,3271.9,3270.7,0.305753]
[1722455788103,3.05623,3272.0,3270.7,0.305753]
[1722455788304,3.05633,3271.9,3270.5,3.05763]
[1722455788607,3.05616,3272.1,3270.6,3.0]
[1722455788816,3.05647,3271.8,3270.4,3.0]
[1722455789010,3.05661,3271.6,3270.0,3.0581]
[1722455789212,3.05661,3271.6,3269.6,3.58519871]
[1722455789213,3.0,3272.0,3270.1,3.0]
[1722455789409,3.0,3272.0,3269.6,6.64362871]
[1722455789410,3.05718,3271.0,3269.6,6.64362871]
[1722455789598,3.05716,3271.1,3269.6,3.58519871]
[1722455789798,3.05691,3271.3,3269.6,2.4249]
[1722455789998,3.05703,3271.2,3269.7,3.05831]
[1722455790329,3.0,3271.6,3269.8,0.06114578]
[1722455790661,3.05671,3271.5,3270.1,3.05799]
[1722455790816,3.0566,3271.6,3269.9,3.05813]
[1722455790995,3.0,3271.7,3269.9,3.05813]
[1722455790996,3.05709,3271.1,3270.0,3.0]
[1722455791210,3.05709,3271.1,3269.8,3.0]
[1722455791410,3.05695,3271.3,3269.8,3.0]
[1722455791613,0.60566,3271.5,3269.6,2.4249]
[1722455791855,3.0,3271.9,3269.6,2.4249]
[1722455792075,5.37183,3271.6,3269.6,2.4249]
[1722455792212,3.05764,3270.5,3269.6,2.4249]
[1722455792408,6.05713,3271.1,3268.8,2.4094]
[1722455792737,3.0,3271.5,3268.8,2.4094]
[1722455792738,3.05686,3271.4,3268.8,2.4094]
[1722455792940,3.05754,3270.6,3268.9,0.24094]
[1722455793144,3.05801,3270.1,3268.9,0.24094]
[1722455793337,3.05811,3270.0,3268.9,0.24094]
[1722455793561,3.05785,3270.3,3268.9,3.30006]
[1722455793757,3.05807,3270.1,3268.9,0.24094]
[1722455793956,3.0582,3269.9,3268.9,0.24094]
[1722455794255,3.0,3270.5,3268.9,0.24094]
[1722455794256,3.05789,3270.3,3268.9,0.24094]
[1722455794459,3.05789,3270.3,3269.0,0.570956]
[1722455794627,3.05797,3270.2,3269.0,0.570956]
[1722455795032,3.05807,3270.1,3269.0,0.570956]
[1722455795245,3.05752,3270.7,3269.1,0.06116241]
[1722455795629,3.05755,3270.6,3269.1,3.12003241]
[1722455795842,3.05745,3270.7,3269.3,3.05872]
[1722455796137,3.05772,3270.5,3269.4,0.0611521]
[1722455796342,0.605686,3271.3,3269.3,3.0]
[1722455796343,3.05741,3270.8,3269.3,3.0]
[1722455796560,0.15352742,3271.5,3270.5,0.01243133]
[1722455796768,3.05752,3270.7,3270.5,0.01243133]
[1722455797078,6.11508,3270.6,3270.5,0.01243133]
[1722455797430,9.11508,3270.6,3270.5,0.01243133]
[1722455797873,6.05754,3270.6,3270.5,0.01243133]
[1722455798027,0.15299539,3271.6,3270.5,0.01243133]
[1722455798231,3.05684,3271.4,3270.5,0.01243133]
[1722455798473,3.0568,3271.4,3270.5,0.01243133]
[1722455799177,2.4662,3272.3,3270.5,0.01243133]
[1722455799178,3.05643,3271.8,3270.5,0.01243133]
[1722455799475,3.0567,3271.5,3270.5,0.01243133]
[1722455799631,3.0,3271.4,3270.5,0.07357066]
[1722455800065,3.05694,3271.3,3270.5,0.01243133]
[1722455800274,3.0564,3271.9,3270.5,3.06999133]
[1722455800474,3.0564,3271.9,3270.6,0.06112737]
[1722455800681,3.05614,3272.1,3270.6,3.11866737]
[1722455800969,3.05632,3271.9,3270.7,0.31310987]
[1722455801228,3.05581,3272.5,3270.8,0.06112737]
[1722455801365,3.05623,3272.0,3270.8,0.06112737]
[1722455801531,3.0,3271.9,3270.8,0.06112737]
[1722455801737,2.4662,3273.0,3270.7,0.31310987]
[1722455801738,3.05658,3271.7,3270.7,0.31310987]
[1722455801938,3.05555,3272.8,3270.5,0.01243133]
[1722455801939,3.05663,3271.6,3270.5,0.01243133]
[1722455802138,3.05714,3271.1,3270.5,0.01243133]
[1722455802517,3.0567,3271.5,3270.1,2.4291]
[1722455802635,3.05733,3270.9,3270.1,2.4291]
[1722455802838,3.05746,3270.7,3269.4,2.3801]
[1722455803046,3.05764,3270.5,3269.5,0.543878]
[1722455803276,3.05776,3270.4,3269.4,2.3801]
[1722455803492,3.05784,3270.3,3268.9,0.24094]
[1722455803638,3.05801,3270.1,3268.9,0.24094]
[1722455804085,3.0,3270.0,3268.9,0.24094]
[1722455804578,3.0,3270.0,3268.5,2.3801]
[1722455804884,3.0,3270.0,3268.7,3.05931]
[1722455805122,3.0,3270.2,3268.9,3.05911]
[1722455805376,3.05804,3270.1,3268.8,3.05922]
[1722455805698,3.05687,3271.4,3269.4,3.0586]
[1722455805997,3.05734,3270.9,3269.5,0.36700927]
[1722455806155,3.05711,3271.1,3269.5,0.36700927]
[1722455806482,3.05722,3271.0,3269.6,3.05841]
[1722455806650,3.05722,3271.0,3269.7,0.06114927]
[1722455806857,3.0,3270.9,3269.7,0.06114927]
[1722455807056,3.05741,3270.8,3268.9,5.3452]
[1722455807267,3.05756,3270.6,3269.0,3.0]
[1722455807476,3.05756,3270.6,3269.1,0.840426]
[1722455807477,3.0579,3270.3,3269.1,0.840426]
[1722455807687,0.605756,3270.6,3268.9,2.3452]
[1722455807688,6.05798,3270.2,3268.9,2.3452]
[1722455807985,3.05766,3270.5,3268.9,2.3452]
[1722455808340,3.05798,3270.2,3268.9,2.3452]
[1722455808667,3.0,3270.1,3268.9,5.40424]
[1722455808916,3.0,3270.1,3268.9,2.3452]
[1722455808917,3.05802,3270.1,3268.9,2.3452]
[1722455809199,3.0,3270.2,3268.9,2.885649]
[1722455809346,3.0,3270.0,3268.9,2.885649]
[1722455809544,3.05807,3270.1,3268.9,2.3452]
[1722455809772,3.0,3270.0,3268.9,2.3452]
[1722455810098,3.05844,3269.7,3268.9,2.3452]
[1722455810301,3.605756,3270.6,3268.9,2.3452]
[1722455810302,3.05825,3269.9,3268.9,2.3452]
[1722455810610,3.0,3269.8,3268.9,2.3452]
[1722455811791,6.0582,3269.9,3268.9,2.57972]
[1722455812020,3.0,3269.9,3268.9,2.57972]
[1722455812220,3.05847,3269.7,3268.9,2.57972]
[1722455812523,3.05864,3269.5,3268.2,2.3901]
[1722455812660,3.05767,3270.5,3268.2,2.3901]
[1722455812661,3.05885,3269.2,3268.2,2.3901]
[1722455813001,3.05875,3269.3,3268.2,2.3901]
[1722455813202,3.0,3269.2,3268.2,2.3901]
[1722455813615,3.05812,3270.0,3268.2,2.3901]
[1722455813616,3.0,3269.4,3268.2,2.3901]
[1722455813816,3.05889,3269.2,3268.3,0.23901]
[1722455813964,3.05869,3269.4,3268.3,0.23901]
[1722455814153,3.0,3269.8,3268.2,2.3901]
[1722455814154,3.05909,3269.0,3268.2,2.3901]
[1722455814355,3.0,3268.9,3268.2,2.3901]
[1722455814560,3.05919,3268.9,3268.2,2.3901]
[1722455814905,0.55,3269.7,3267.5,2.4915]
[1722455814906,6.05929,3268.8,3267.5,2.4915]
[1722455815076,3.05929,3268.8,3267.5,2.4915]
[1722455815261,3.05942,3268.6,3267.6,0.24915]
[1722455815462,3.0,3268.7,3267.6,0.24915]
[1722455815463,3.0,3268.5,3267.6,0.24915]
[1722455815802,3.0,3268.7,3267.5,2.4915]
[1722455815958,3.05965,3268.4,3267.5,2.4915]
[1722455816157,3.05979,3268.2,3267.5,2.4915]
[1722455816362,3.0,3268.1,3267.5,2.4915]
[1722455817257,3.0,3268.4,3267.5,2.4915]
[1722455817464,3.0,3268.5,3267.5,2.4915]
[1722455817803,3.05974,3268.3,3267.5,2.4915]
[1722455818105,3.0599,3268.1,3266.8,5.54002]
[1722455818314,3.0,3268.2,3266.8,5.54002]
[1722455818315,3.0,3268.0,3266.9,3.061]
[1722455818526,3.0,3268.2,3267.1,3.0608]
[1722455818801,3.05975,3268.3,3267.1,0.61830023]
[1722455819002,6.0596,3268.4,3267.1,3.06079]
[1722455819427,6.0596,3268.4,3266.9,3.06095]
[1722455819428,3.0,3268.4,3266.9,3.06095]
[1722455819563,3.0,3268.4,3267.1,3.06073]
[1722455819763,3.05969,3268.3,3266.9,3.06092]
[1722455819997,3.0,3268.2,3267.1,3.06074]
[1722455820197,6.0596,3268.4,3267.0,0.553992]
[1722455820198,3.05969,3268.3,3267.0,0.553992]
[1722455820517,3.0,3268.2,3267.6,3.06027]
[1722455820813,3.0,3268.4,3267.7,0.06119356]
[1722455820965,3.05895,3269.1,3267.7,0.06119356]
[1722455821167,2.3606,3269.9,3267.8,0.06119128]
[1722455821522,3.05887,3269.2,3267.8,0.06119128]
[1722455821674,2.3606,3269.9,3267.1,3.0]
[1722455821675,3.05849,3269.6,3267.1,3.0]
[1722455822013,3.0592,3268.9,3267.2,3.06068]
[1722455822332,3.05872,3269.4,3267.0,0.553992]
[1722455822623,3.05872,3269.4,3266.8,2.479]
[1722455822624,3.05917,3268.9,3267.4,3.06053]
[1722455822764,0.305872,3269.3,3267.5,0.0611908]
[1722455823108,3.0592,3268.9,3267.6,3.06034]
[1722455823313,0.55,3269.2,3267.7,3.06024]
[1722455823314,3.0,3268.8,3267.7,3.06024]
[1722455823466,6.05912,3269.0,3267.8,0.06119095]
[1722455823664,3.0596,3268.4,3267.1,3.06078]
[1722455823859,3.0,3268.3,3266.8,2.479]
[1722455824061,3.0,3269.0,3266.9,0.5539]
[1722455824362,3.05956,3268.5,3267.1,3.06076]
[1722455824813,3.0,3268.4,3267.1,3.06076]
[1722455825107,3.0,3268.4,3266.8,2.479]
[1722455825265,3.0,3268.4,3266.2,3.0616]
[1722455825266,3.06031,3267.7,3266.2,3.0616]
[1722455825467,3.06031,3267.7,3266.3,0.53539]
[1722455825699,3.06054,3267.4,3266.3,0.53539]
[1722455826013,3.06054,3267.4,3266.1,2.2923]
[1722455826179,3.0,3267.3,3266.2,3.06159]
[1722455826370,3.0,3267.6,3266.3,3.06156]
[1722455826564,3.0,3267.9,3266.4,0.06121551]
[1722455826823,3.0,3267.8,3266.8,3.06103]
[1722455826961,3.05847,3269.6,3266.1,3.7923]
[1722455826962,3.0584,3269.7,3266.9,0.36730706]
[1722455827161,3.05905,3269.0,3267.0,0.06119915]
[1722455827368,6.05914,3268.9,3267.5,3.06043]
[1722455827682,3.05929,3268.8,3267.4,2.3002]
[1722455827881,3.05886,3269.2,3267.7,3.06024]
[1722455828215,0.3081,3270.5,3267.4,2.3002]
[1722455828216,3.05933,3268.7,3267.4,2.3002]
[1722455828418,0.305933,3268.6,3267.4,2.3002]
[1722455828727,0.29640974,3270.5,3266.7,2.4463]
[1722455828728,3.05972,3268.3,3266.7,2.4463]
[1722455828933,2.453,3268.9,3266.7,2.4463]
[1722455829141,3.05934,3268.7,3267.2,3.06065]
[1722455829274,3.0,3268.6,3267.2,3.06065]
[1722455829479,3.0,3268.6,3267.0,3.06082]
[1722455829706,3.05889,3269.2,3267.1,0.306082]
[1722455829707,0.3,3268.5,3267.1,0.306082]
[1722455829932,3.06016,3267.8,3266.7,2.4463]
[1722455830278,3.05997,3268.0,3266.7,2.4463]
[1722455830475,3.0,3268.9,3266.7,2.4463]
[1722455830679,0.55,3268.8,3266.8,0.06120033]
[1722455830917,3.05904,3269.0,3267.0,3.0609]
[1722455831114,0.537467,3269.4,3267.1,0.91728095]
[1722455831529,3.05915,3268.9,3267.2,3.06063]
[1722455831731,3.05897,3269.1,3267.4,3.06044]
[1722455831935,2.3161,3269.5,3267.5,3.12162888]
[1722455832146,2.3161,3269.5,3267.5,3.06044]
[1722455832341,3.05923,3268.8,3267.2,3.06072]
[1722455832556,3.05923,3268.8,3267.3,0.336681]
[1722455832844,3.05947,3268.6,3267.3,0.336681]
[1722455832996,3.0,3268.5,3267.3,0.336681]
[1722455833196,3.05954,3268.5,3267.3,0.336681]
[1722455833439,3.05984,3268.2,3266.7,2.4463]
[1722455833977,3.05885,3269.2,3267.1,3.06073]
[1722455833978,3.0,3268.1,3267.1,3.06073]
[1722455834255,0.15329085,3269.2,3267.1,3.06073]
[1722455834256,3.55,3269.1,3267.1,3.06073]
[1722455834402,3.05941,3268.6,3267.1,3.06073]